Cogmind - Beta 15 @@@ ROGUE MODE // 2025.05.18 @ 17:46:16 Player: GiggleBox Result: Destroyed by Y9-06B(R) with Subdweller Machine Gun Performance ------------- Evolutions (0) 0 Regions Visited (2) 400 Robots Destroyed (15) 75 Value Destroyed (397) 397 Prototype IDs (0) 0 Alien Tech Used (0) 0 Bonus (0) 0 TOTAL SCORE: 872 Bonus ------- None Cogmind --------- Core Integrity 0/250 Matter 76/300 Energy 100/100 System Corruption 0% Temperature Cool (0) Movement Treading (240) Ox1 Location -10/Subcaves Parts ------- > --- POWER (1) -------- (None) > --- PROPULSION (2) --- Light Treads > --- UTILITY (2) ------ Large Storage Unit > --- WEAPON (2) ------- Autogun Autogun > --- INVENTORY (15) --- Wheel Heat Sink Heat Sink High-capacity Matter Pod (200) Structural Scanner Improved Terrain Scanner Core Shielding Tractor Beam Autogun EMP Blaster Heavy Hammer Peak State ------------ > --- POWER ------------ Ion Engine > --- PROPULSION ------- Aluminum Leg Aluminum Leg > --- UTILITY ---------- Heat Sink Large Storage Unit > --- WEAPON ----------- Autogun Autogun > --- INVENTORY -------- Light Nuclear Core Light Treads Wheel Heat Sink High-capacity Matter Pod Improved Terrain Scanner Core Shielding Light Armor Plating Tractor Beam Small Laser Small Laser Particle Gun Assault Rifle Light Cannon Heavy Hammer [Rating: 11] Favorites ----------- Power Ion Engine Engine Ion Engine Power Core Light Nuclear Core Propulsion Aluminum Leg Treads Light Treads Leg Aluminum Leg Wheel Wheel Utility Large Storage Unit Device Heat Sink Storage Large Storage Unit Protection Core Shielding Weapon Medium Laser Energy Gun Medium Laser Ballistic Gun Autogun Build | -11 -10 -10 ------- Run | Yrd Mat Sub Slots Evolved . | . . . Power . | . . . Propulsion . | . . . Utility . | . . . Weapon . | . . . Parts Attached 25 | 9 11 5 Power 4 | 2 1 1 Engine 3 | 2 1 . Core 1 | . . 1 Reactor . | . . . Propulsion 6 | 2 3 1 Treads 3 | 2 . 1 Leg 2 | . 2 . Wheel 1 | . 1 . Hover . | . . . Flight . | . . . Utility 7 | 2 4 1 Device 3 | 1 1 1 Storage 2 | 1 1 . Processor . | . . . Hackware . | . . . Protection 2 | . 2 . Artifact . | . . . Weapon 8 | 3 3 2 Energy Gun 3 | 2 1 . Energy Cannon . | . . . Ballistic Gun 5 | 1 2 2 Ballistic Cannon . | . . . Launcher . | . . . Special Weapon . | . . . Impact Weapon . | . . . Slashing Weapon . | . . . Piercing Weapon . | . . . Special Melee Weapon . | . . . Unidentified Prototypes . | . . . Parts Lost 13 | . 6 7 Power 4 | . 2 2 Propulsion 4 | . 2 2 Utility 2 | . 1 1 Weapon 3 | . 1 2 Highest Loss Streak 7 | . 4 7 To Critical Strikes 2 | . . 2 Average Backups 11 | 1 10 14 Power . | . . . Propulsion 1 | . 1 1 Utility 4 | . 4 7 Weapon 3 | . 3 4 Tool/Special . | . . . Unused Backups 10 | . 4 6 Power . | . . . Propulsion . | . . . Utility 5 | . 1 4 Weapon 5 | . 3 2 Tool/Special . | . . . Average Slot Usage (%) 96 | . 97 92 Engine 13 | . 13 11 Treads 8 | . 10 1 Leg 18 | . 16 23 Device 8 | . 9 5 Storage 14 | . 14 14 Protection 4 | . 3 6 Energy Gun 15 | . 16 12 Ballistic Gun 12 | . 11 15 Peak Build Rating 11 | 7 11 11 Average Rating 8 | 5 8 10 On Entrance 6 | . 7 11 Naked Turns . | . . . Heaviest Build 34 | 15 34 34 Greatest Support 40 | 40 40 20 Greatest Overweight (x) 2 | . 2 1 Average Overweight (x) . | . . 1 Largest Inventory Capacity 15 | 8 15 15 Average Capacity 13 | 6 13 15 Most Carried 15 | 3 15 15 Average Carried 11 | 1 10 14 Final Capacity 15 | 8 15 15 Final Carried 15 | 3 15 11 Class Distribution -------------------- 62% | Scavenger-Mutant 37% | Mutant Dominant Class ---------------- Scavenger-Mutant | -10/Materials Scavenger-Mutant | -10/Subcaves Resources | -11 -10 -10 ----------- Run | Yrd Mat Sub Matter Collected 994 | 290 645 59 Remotely . | . . . Salvage Created 644 | 108 536 . Parts 31 | 4 27 . Haulers Intercepted 1 | . 1 . Recyclers Shooed 3 | . 3 . Parts Field Recycled . | . . . Retrieved Matter . | . . . Parts Self-Destructed 4 | . . 4 Prevented . | . . . Kills | -11 -10 -10 ------- Run | Yrd Mat Sub Combat Hostiles Destroyed 11 | . 11 . Guns 11 | . 11 . Classes Destroyed 5 | 2 3 . Tunneler 1 | 1 . . Hauler 1 | . 1 . Recycler 2 | 1 1 . Swarmer 1 | . 1 . Grunt 10 | . 10 . Best Kill Streak 2 | 1 2 . Combat Bots Only 2 | . 2 . Max Kills in Single Turn 1 | 1 1 . Gunslinging . | . . . Exploded . | . . . Melee . | . . . Uniques/NPCs Destroyed . | . . . Combat | -11 -10 -10 -------- Run | Yrd Mat Sub Hostile Shots Fired 155 | . 97 58 Missed 41 | . 28 13 Hits 114 | . 69 45 Projectile 114 | . 69 45 Critical Strikes 7 | . 3 4 Actively Blocked 1 | . 1 . Damage Taken 1812 | . 874 938 Core 267 | . 121 146 Absorbed by Shields . | . . . Redirected to Shielding 17 | . 17 . Core Remaining (%) 100 | 100 . . Volleys Fired 111 | 3 63 45 Largest 2 | 2 2 2 Hottest 115 | 100 115 88 Shots Fired 218 | 6 124 88 Gun 218 | 6 124 88 Cannon . | . . . Launcher . | . . . Special . | . . . Kinetic 124 | . 62 62 Thermal 94 | 6 62 26 Explosive . | . . . Electromagnetic . | . . . Robot Hit Streak 26 | 6 7 26 Robot Miss Streak 3 | . 3 1 Penetration Max . | . . . Secondary Targets 3 | . 3 . Max Gunslinging Chain 1 | . 1 . Shots Hit Robots 159 | 6 73 80 Core Hits 31 | 3 27 1 Critical Kills . | . . . Critical Parts Destroyed 1 | . 1 . Critical Strikes 3 | 1 2 . Burn 2 | 1 1 . Destroy 1 | . 1 . Melee Attacks . | . . . Impact . | . . . Slashing . | . . . Piercing . | . . . Sneak Attacks . | . . . Combat Hostiles . | . . . Follow-up Attacks . | . . . Damage Inflicted 1112 | 79 991 42 Guns 1107 | 76 989 42 Cannons . | . . . Explosions . | . . . Melee . | . . . Ramming 5 | 3 2 . Kinetic 508 | . 481 27 Thermal 599 | 76 508 15 Explosive . | . . . Electromagnetic . | . . . Impact . | . . . Slashing . | . . . Piercing . | . . . Highest Corruption . | . . . Average Corruption . | . . . Corruption Purged . | . . . Corruption Blocked . | . . . Overload Shots . | . . . Overflow Damage . | . . . Projectiles . | . . . Explosions . | . . . Melee . | . . . Knockbacks . | . . . Impact . | . . . Kinetic . | . . . Secondary . | . . . Self-Inflicted Damage . | . . . Shots . | . . . Rammed 2 | 1 1 . Targets Rammed 2 | 1 1 . Kicked . | . . . Crushed . | . . . Highest Temperature 278 | 78 278 28 Average Temperature 67 | 33 79 11 Received Heat Transfer 522 | . 522 . Effects 1 | . 1 . Interference 1 | . 1 . Siege Activations . | . . . Martial Activations . | . . . Shielding Activations . | . . . Robots Disrupted . | . . . Combat Hostiles . | . . . Robots Corrupted . | . . . Combat Hostiles . | . . . Parts Fried . | . . . Impact Corruptions . | . . . Robots Melted . | . . . Combat Hostiles . | . . . Parts Melted 5 | 2 3 . Heat Transferred 1887 | 296 1554 37 Parts Sabotaged . | . . . Parts Stolen . | . . . Parts Stripped . | . . . Power Chain Reactions . | . . . Alert | -11 -10 -10 ------- Run | Yrd Mat Sub Maximum Alert Level . | . . . Low Security (%) 100 | 100 100 . Level 1 . | . . . Level 2 . | . . . Level 3 . | . . . Level 4 . | . . . Level 5 . | . . . High Security . | . . . Max Security . | . . . Peak Influence 50 | 5 50 . Initial . | . . . Average 12 | 1 13 . Influence Increases 344 | 10 334 . Destroy 0b10 Robot/C 220 | . 220 . Destroy 0b10 Robot/NC 20 | 10 10 . Destroy Leader 52 | . 52 . Successful Hack 37 | . 37 . Lose Combat Pursuer 15 | . 15 . Influence Decreases 344 | 10 334 . Time Decay 324 | 10 314 . Lost Part 20 | . 20 . Squads Dispatched 3 | . 3 . Investigation 1 | . 1 . Extermination . | . . . Reinforcement 2 | . 2 . Assault . | . . . Garrison . | . . . Intercept . | . . . Searches Triggered . | . . . Construction Impeded . | . . . Haulers Reinforced . | . . . Active Scanning Responses . | . . . Cargo Convoy Interrupts . | . . . Stealth | -11 -10 -10 --------- Run | Yrd Mat Sub Distress Signals 4 | . 4 . Communications Jammed . | . . . Distress Signals . | . . . Times Spotted 18 | . 17 1 Peak Tracking Total 4 | . 4 1 Tactical Retreats 1 | . 1 . Traps | -11 -10 -10 ------- Run | Yrd Mat Sub Traps Triggered 1 | . 1 . Indirectly . | . . . Trap Hack Attempts . | . . . Triggered . | . . . Disarmed . | . . . Reprogrammed . | . . . Reused . | . . . Traps Extracted . | . . . Installed . | . . . Triggered . | . . . Machines | -11 -10 -10 ---------- Run | Yrd Mat Sub Machines Disabled . | . . . Max in Single Turn . | . . . Machines Repaired . | . . . Machines Dismantled . | . . . Machines Sabotaged . | . . . Overloaded Fab Kills . | . . . Hacking | -11 -10 -10 --------- Run | Yrd Mat Sub Machines Accessed 5 | . 5 . Terminals 5 | . 5 . Fabricators . | . . . Repair Stations . | . . . Recycling Units . | . . . Scanalyzers . | . . . Garrison Access . | . . . Total Hacks 14 | . 14 . Successful 6 | . 6 . Failed 8 | . 8 . Catastrophic . | . . . Database Lockouts . | . . . Manual 14 | . 14 . Terminals 14 | . 14 . Fabricators . | . . . Repair Stations . | . . . Recycling Units . | . . . Scanalyzers . | . . . Garrison Access . | . . . Terminal Hacks . | . . . Fabricator Hacks . | . . . Repair Station Hacks . | . . . Recycling Unit Hacks . | . . . Scanalyzer . | . . . Garrison Access Hacks . | . . . Unauthorized Hacks 6 | . 6 . Terminals 6 | . 6 . Botnet 2 | . 2 . Operators 1 | . 1 . Skim 3 | . 3 . Fabricators . | . . . Repair Stations . | . . . Recycling Units . | . . . Scanalyzers . | . . . Garrison Access . | . . . Data Cores Recovered . | . . . Used . | . . . Hacking Detections 5 | . 5 . Full Trace Events . | . . . Feedback Events . | . . . Feedback Blocked . | . . . Robot Schematics Acquired . | . . . Robots Built . | . . . Authchips . | . . . Time . | . . . Total Robot Build Rating . | . . . Part Schematics Acquired . | . . . Parts Built . | . . . Authchips . | . . . Time . | . . . Total Part Build Rating . | . . . Parts Repaired . | . . . Time . | . . . Parts Recycled . | . . . Recycled Matter . | . . . Retrieved Matter . | . . . Retrieved Components . | . . . Parts Scanalyzed . | . . . Part Schematics Acquired . | . . . Parts Damaged . | . . . Bothacking | -11 -10 -10 ------------ Run | Yrd Mat Sub Used RIF Installer . | . . . Robots Hacked . | . . . Non-combat . | . . . Combat . | . . . Robot Hacks Applied . | . . . Relay Couplers Released . | . . . Fabnet Peak Effective % . | . . . Robots Rewired . | . . . Allies Hacked . | . . . Hacks Repelled . | . . . Allies | -11 -10 -10 -------- Run | Yrd Mat Sub Total Allies . | . . . Largest Group . | . . . Highest-Rated Group . | . . . Highest-Rated Ally . | . . . Total Orders . | . . . Ally Attacks . | . . . Total Damage . | . . . Kills . | . . . Allies Corrupted . | . . . Allies Melted . | . . . Intel | -11 -10 -10 ------- Run | Yrd Mat Sub Active Infowar (turns) 360 | 18 144 198 Structural 198 | . . 198 Seismic 162 | 18 144 . Robot Analysis Total . | . . . Derelict Logs Recovered . | . . . Drone Launches . | . . . Drone Recoveries . | . . . Exploration | -11 -10 -10 ------------- Run | Yrd Mat Sub Turns Passed 2225 | 108 1613 504 Spaces Moved 1003 | 51 754 198 Core 2 | 2 . . Treads 333 | 49 282 2 Legs 660 | . 464 196 Wheels 8 | . 8 . Hover . | . . . Flight . | . . . Fastest Speed 50 | 50 110 190 Average Speed 179 | 155 178 190 Slowest Speed 260 | 160 260 240 Overloaded Moves . | . . . Propulsion Burnouts . | . . . Robots Hopped . | . . . Potential Cave-ins . | . . . Cave-ins Triggered . | . . . Exploration Rate (%) 41 | 3 99 22 Regions Visited 2 Branch Regions 1 Pre-discovered Areas . | . . . Known Exits Taken . | . . . Unknown Exits Taken 2 | 1 1 . Scrap Searched 1 | . . 1 Spaces Dug . | . . . Terrain Destroyed . | . . . Melee . | . . . Projectile . | . . . AOE . | . . . Terrain Rammed . | . . . Walls Destroyed . | . . . Machines Disabled . | . . . Actions | -11 -10 -10 --------- Run | Yrd Mat Sub Total 1220 | 69 902 249 Wait 45 | 3 42 . Move 1002 | 51 753 198 Hop . | . . . Pick Up 22 | 3 19 . Fast Attach 11 | 7 4 . Attach 8 | . 4 4 Detach 1 | . 1 . Swap 12 | 2 8 2 Drop 7 | . 7 . Fire 111 | 3 63 45 Melee . | . . . Ram . | . . . Kick . | . . . Crush 1 | . 1 . Escape Stasis . | . . . Rewire . | . . . Trap . | . . . Miscellaneous . | . . . Route ------- -11/Scrapyard -10/Materials (discovered 6 exits: [*Mat x3] / [*Min x2] / [*Sub]) -10/Subcaves History --------- Turn | Location | Event 20 | -11/Scrapyard | Discovered new exit (range 15) 109 | -11/Scrapyard | Entered Materials 111 | -10/Materials | Discovered new exit (range 14) 212 | -10/Materials | Discovered new exit (range 14) 307 | -10/Materials | Build established: Mutant 478 | -10/Materials | Discovered new exit (range 11) 522 | -10/Materials | Discovered new exit (range 9) 709 | -10/Materials | Derelicts attacked the area 779 | -10/Materials | Lost 4 parts (2p2n) 838 | -10/Materials | Discovered new exit (range 15) 1066 | -10/Materials | Build established: Scavenger-Mutant 1529 | -10/Materials | Discovered new exit (range 16) 1722 | -10/Materials | Entered Subcaves 1723 | -10/Subcaves | Approached by a straggling Scientist 2097 | -10/Subcaves | Disturbed a concealed Subdweller 2099 | -10/Subcaves | Core integrity fell below 50% 2138 | -10/Subcaves | Disturbed a concealed Subdweller 2154 | -10/Subcaves | Core integrity fell below 20% 2224 | -10/Subcaves | Lost 7 parts (2p2n1u2w) 2226 | -10/Subcaves | Destroyed by Y9-06B(R) with Subdweller Machine Gun Last Messages --------------- 02105_ Y9-06B(R) affixes Scrap Shield Fragment to Scrap Shield. 02107_ Acquired 4 matter. 02118_ Acquired 1 matter. 02127_ Subatomizers dissect the Sub. Shrapnel Launcher. L1-EX8(c): "I think it's somewhere northeast of here" 02141_ Ion Engine destroyed. 02142_ Subatomizers dissect the Sub. Shrapnel Launcher. 02145_ Lgt. Armor Plating destroyed. 02149_ Critical hit (Destroy). 02149_ Aluminum Leg destroyed. 02154_ Subatomizers dissect the Sub. Shrapnel Launcher. 02157_ Critical hit (Destroy). 02157_ Aluminum Leg destroyed. 02167_ Subatomizers dissect the Sub. Shrapnel Launcher. 02167_ Autogun destroyed. 02169_ Particle Gun destroyed. 02180_ Subatomizers dissect the Sub. Shrapnel Launcher. 02191_ Subatomizers dissect the Hvy. Battle Rifle. 02193_ Lgt. Nuclear Core destroyed. 02201_ Subatomizers dissect the Hvy. Battle Rifle. Map ----- +----------------------------------------------------+ | ?????????????????????????????????????????????????? | | ?????????????????????????????????????????????????? | | ?????????????????????????????????????????????????? | | ?????????????????????????????????????????????????? | | ?????????????????????????????????????????????????? | | ?????????????????????????????????????????????????? | | ?????????????????????????????????????????????????? | | ?????????????????????????????????????????????????? | | ?????????????????????????????????????????????????? | | ?????????????????????????????????????????????????? | | ?????????????????????????????????????????????????? | | ?????????????????????????????????????????????????? | | ?????????????????????????????????????????????????? | | ?????????????????????????????????????????????????? | | ?????????????????????????????????????????????????? | | ?????????????????????????????????????????????????? | | ?????????????????????????????????????????????????? | | ?????????????????????????????????????????????????? | | ?????????????????????????????????????????????????? | | ?????????????????#########???????????????????????? | | ???????????????##############????????????????????? | | ??????????????##### << <#####???????????????????? | | ??????????????###<< < ###???????????????????? | | ??????????????##< <###??????????????????? | | ?????????????###< $$$ < ###??????????????????? | | ?????????????## < $ $]@R <##??????????????????? | | ?????????????##< < $$ [ ^##??????????????????? | | ?????????????## <##??????????????????? | | ?????????????##< ##### <##??????????????????? | | ?????????????###< # < ##??????????????????? | | ??????????????#<&" ##<<###??????????????????? | | ??????????????###"""## "######??????????????????? | | ?????????????########" ######??????????????????? | | ????????????### ### " ######????????????????? | | ???????????### ####????????????????? | | ??????????### ########## ###?????????????### | | ?????????### ##### ##########?????## | | ?????????## ????????## #########?????# | | ?????????### ?????????## ######## | | ?????????#### ?????????### ######### | | ??????????#### ??????????### #### ### | | ???????????### ?????????### #### #### | | ????????????????????????### ## ### ### | | ????????????????????????## ###### #### | | ????????????????????????### ##### ### | | ????????????????????????### ## ####? ### | | ????????????????????????### ### ###### ### | | ????????????????????????## ### ##### ### | | ????????????????????????### ## ## ## | | ???????????????????????? ## ## | +----------------------------------------------------+ Best States ------------- Heat Dissipation 35 Energy Generation 14 Energy Capacity 250 Matter Stores 300 Matter Capacity 300 Sight Range 16 Terrain Scan Density 10 Armor Coverage 150 Core Shielding 20 Evasion (%) 40 Recoil Reduction 2 Item Schematics ----------------- None Robot Schematics ------------------ None Fabricated ------------ Nothing Repaired ---------- Nothing Alien Tech Used ----------------- None Achievements -------------- None Challenges ------------ None Game ------ Seed TowerMultinovaRedistributor Manual? 0 Play Time 00:13:45 Cumulative 101.8 hours Start 2025.05.18 @ 17:34:41 End 2025.05.18 @ 17:46:16 Sessions 1 Manual Loads 0 Difficulty Rogue Special Mode None Game No. 105 Rogue 105 Adventurer 0 Explorer 0 Win Type - Total 1 Types 1/0/0/0/0/0/0/0/0/0 Lore% 57 Gallery% 54 Achievement% 47 Wizard Run 0 Options --------- Layout 0 ASCII 0 Keyboard 1 Movement Numpad Keybinds 0 Fullscreen 1 Font 24/Terminus Map View 76x50 Zoom Use 0% Tactical HUD 1 Map Filters NONE Filters NONE Steam 1 RUN: bc9d919b-bfe8-4729-8a51-fbe02ce1b008